bitfinex-derivatives/quotes_ETHF0:USTF0_20230830
["timestamp","ask_amount","ask_price","bid_price","bid_amount"]
[1693397524690,15.47060554,1717.2,1717.1,7.93468652]
[1693397530501,18.4794377,1717.2,1717.1,7.93468652]
[1693397530702,20.03296257,1717.2,1717.1,7.93468652]
[1693397532305,8.101102,1717.2,1717.1,20.08868299]
[1693397532595,5.89057339,1717.5,1717.1,21.03152198]
[1693397532800,7.00105703,1717.6,1717.4,8.4408]
[1693397532997,7.00105703,1717.6,1717.5,2.70168652]
[1693397535597,6.34421636,1717.6,1717.5,2.70168652]
[1693397545910,6.34421636,1717.6,1717.5,7.93468652]
[1693397547907,5.016,1717.6,1717.5,7.93468652]
[1693397550308,6.34421636,1717.6,1717.5,7.93468652]
[1693397552512,9.11457705,1717.6,1717.5,7.93468652]
[1693397552815,6.63541596,1717.6,1717.5,7.93468652]
[1693397553217,9.11470081,1717.6,1717.5,7.93468652]
[1693397559809,8.35297848,1717.6,1717.5,7.93468652]
[1693397560218,5.3071996,1717.6,1717.5,7.93468652]
[1693397560414,8.35308454,1717.6,1717.5,7.93468652]
[1693397560716,7.5915495,1717.6,1717.5,7.93468652]
[1693397561217,5.3071996,1717.6,1717.5,7.93468652]
[1693397561615,7.59158199,1717.6,1717.5,7.93468652]
[1693397562210,5.3071996,1717.6,1717.5,7.93468652]
[1693397562613,7.59164414,1717.6,1717.5,7.93468652]
[1693397562818,5.3071996,1717.6,1717.5,7.93468652]
[1693397563216,8.35308454,1717.6,1717.5,7.93468652]
[1693397565820,7.59214703,1717.6,1717.5,7.93468652]
[1693397566416,5.15344703,1717.6,1717.5,15.64862819]
[1693397571821,2.8684996,1717.6,1717.5,15.64862819]
[1693397572621,5.91438454,1717.6,1717.5,15.64862819]
[1693397575824,6.67600081,1717.6,1717.5,15.64862819]
[1693397577131,5.9176449,1717.6,1717.5,15.64862819]
[1693397577631,6.67600081,1717.6,1717.5,15.64862819]
[1693397581230,8.10958257,1717.6,1717.5,12.94694167]
[1693397581433,8.10958257,1717.6,1717.5,5.233]
[1693397583032,7.35178366,1717.6,1717.5,5.233]
[1693397583228,7.35178366,1717.6,1717.5,5.66475004]
[1693397583634,4.30208136,1717.6,1717.5,5.66475004]
[1693397584332,7.35193675,1717.6,1717.5,5.66475004]
[1693397584627,4.30208136,1717.6,1717.5,5.66475004]
[1693397585732,8.10958257,1717.6,1717.5,5.66475004]
[1693397586331,8.10958257,1717.6,1717.5,5.233]
[1693397586934,9.31494509,1717.6,1717.5,5.233]
[1693397592634,5.50744388,1717.6,1717.5,5.233]
[1693397594339,5.50744388,1717.6,1717.5,5.66475004]
[1693397594639,5.50744388,1717.6,1717.5,5.233]
[1693397597638,4.30208136,1717.6,1717.5,5.233]
[1693397597839,8.11601406,1717.6,1717.5,5.233]
[1693397598045,9.32137658,1717.6,1717.5,5.66475004]
[1693397598243,8.11601406,1717.6,1717.5,5.66475004]
[1693397598743,9.32137658,1717.6,1717.5,5.233]
[1693397599043,9.32137658,1717.6,1717.5,5.66475004]
[1693397599237,9.32137658,1717.6,1717.5,5.233]
[1693397600650,5.50744388,1717.6,1717.5,5.233]
[1693397601539,6.68299858,1717.6,1717.5,5.66475004]
[1693397601734,9.32194286,1717.6,1717.5,5.66475004]
[1693397602142,5.50744388,1717.6,1717.5,5.66475004]
[1693397602843,5.50744388,1717.6,1717.5,5.233]
[1693397603539,8.11673695,1717.6,1717.5,5.233]
[1693397603744,5.50744388,1717.6,1717.5,5.233]
[1693397604339,9.32217018,1717.6,1717.5,5.66475004]
[1693397605843,5.50744388,1717.6,1717.5,5.66475004]
[1693397606242,4.30208136,1717.6,1717.5,5.66475004]
[1693397606542,5.50744388,1717.6,1717.5,5.66475004]
[1693397606742,4.07386212,1717.6,1717.5,5.66475004]
[1693397607946,5.50744388,1717.6,1717.5,5.66475004]
[1693397608852,4.07386212,1717.6,1717.5,0.43175004]
[1693397609146,6.68351721,1717.6,1717.5,5.66475004]
[1693397609347,7.88887973,1717.6,1717.5,5.66475004]
[1693397610146,7.88887973,1717.6,1717.5,7.19336297]
[1693397610348,5.31157973,1717.6,1717.5,7.19336297]
[1693397610649,3.34336639,1717.6,1717.5,18.40579261]
[1693397610950,2.58050606,1717.6,1717.5,19.1645001]
[1693397611450,2.28930646,1717.6,1717.5,16.11287321]
[1693397612350,2.28930646,1717.6,1717.5,18.40315019]
[1693397612951,2.28930646,1717.6,1717.5,16.11287321]
[1693397613250,3.81481047,1717.6,1717.5,18.40277789]
[1693397613756,1.52550401,1717.6,1717.5,18.40277789]
[1693397621165,1.52550401,1717.6,1717.5,17.63839469]
[1693397623457,1.52550401,1717.6,1717.5,14.90686665]
[1693397624062,1.52388671,1717.6,1717.5,14.90660673]
[1693397628159,1.52388671,1717.6,1717.5,17.64119271]
[1693397628557,3.92848671,1717.6,1717.5,17.64119271]
[1693397640883,5.36206847,1717.6,1717.5,17.64119271]
[1693397641983,3.92848671,1717.6,1717.5,17.64119271]
[1693397643286,6.21431678,1717.6,1717.5,14.90660673]
[1693397644181,7.64789854,1717.6,1717.5,14.90660673]
[1693397644379,6.12401183,1717.6,1717.5,14.90660673]
[1693397644579,7.64811498,1717.6,1717.5,14.90660673]
[1693397644781,6.12401183,1717.6,1717.5,14.47485669]
[1693397644982,7.64810598,1717.6,1717.5,14.47485669]
[1693397645381,6.12401183,1717.6,1717.5,14.47485669]
[1693397646180,6.12401183,1717.6,1717.5,1.52526156]
[1693397646485,4.12933547,1717.6,1717.5,5.233]
[1693397646784,7.17710889,1717.6,1717.5,5.233]
[1693397650381,6.41662771,1717.6,1717.5,9.49509665]
[1693397651387,7.17710889,1717.6,1717.5,1.52526156]
[1693397653883,5.74352713,1717.6,1717.5,7.1900116]
[1693397654585,5.74352713,1717.6,1717.5,9.92804868]
[1693397654792,5.74352713,1717.6,1717.5,7.1900116]
[1693397654990,7.17710889,1717.6,1717.5,6.75826156]
[1693397655192,5.74352713,1717.6,1717.5,9.9280478]
[1693397657704,5.74352713,1717.6,1717.5,9.93019406]
[1693397657705,5.74695813,1717.6,1717.5,9.93019406]
[1693397659393,5.74695813,1717.6,1717.5,7.19194267]
[1693397665102,5.74695813,1717.6,1717.5,12.22064447]
[1693397665504,5.74695813,1717.6,1717.5,9.92985553]
[1693397668199,3.34235813,1717.6,1717.5,9.92985553]
[1693397669299,3.34235813,1717.6,1717.5,12.22064447]
[1693397669499,3.34235813,1717.6,1717.5,9.92985553]
[1693397670296,3.34235813,1717.6,1717.5,12.22064447]
[1693397670795,3.34235813,1717.6,1717.5,9.92985553]
[1693397672705,3.34235813,1717.6,1717.5,12.22064447]
[1693397673509,3.34235813,1717.6,1717.5,10.69345184]
[1693397680714,3.34235813,1717.6,1717.5,12.22080177]
[1693397681904,3.34235813,1717.6,1717.5,18.42378818]
[1693397684416,5.73905813,1717.6,1717.5,18.42378818]
[1693397685311,7.17263989,1717.6,1717.5,18.42378818]
[1693397685512,7.17263989,1717.6,1717.5,10.2617018]
[1693397685909,7.17263989,1717.6,1717.5,9.49844713]
[1693397687715,7.17348283,1717.6,1717.5,9.49844713]
[1693397688613,7.17348283,1717.6,1717.5,10.2617018]
[1693397695734,7.93543877,1717.6,1717.5,9.49872704]
[1693397699130,4.1214444,1717.6,1717.5,9.49872704]
[1693397699431,4.1214444,1717.6,1717.5,11.78951598]
[1693397701637,2.68786264,1717.6,1717.5,12.22126602]
[1693397701832,5.740805,1717.6,1717.5,10.69345184]
[1693397702135,3.344105,1717.6,1717.5,10.69345184]
[1693397702340,3.344105,1717.6,1717.5,18.14824285]
[1693397702834,3.344105,1717.6,1717.5,15.85745391]
[1693397704034,4.77768676,1717.6,1717.5,10.26256926]
[1693397704430,3.344105,1717.6,1717.5,10.6943193]
[1693397704930,4.77768676,1717.6,1717.5,10.6943193]
[1693397705125,4.77768676,1717.6,1717.5,10.26256926]
[1693397705425,1.7247444,1717.6,1717.5,11.79045083]
[1693397705632,1.7247444,1717.6,1717.5,10.6943193]
[1693397705830,6.7944444,1717.6,1717.5,10.6943193]
[1693397706037,9.84869547,1717.6,1717.5,10.6943193]
[1693397706233,8.41511371,1717.6,1717.5,10.6943193]
[1693397706839,9.84869547,1717.6,1717.5,10.6943193]
[1693397708533,8.41511371,1717.6,1717.5,10.6943193]
[1693397708934,9.84869547,1717.6,1717.5,10.6943193]
[1693397710539,5.97521371,1717.6,1717.5,18.2343153]
[1693397710735,5.97521371,1717.6,1717.5,18.23449924]
[1693397711736,7.40879547,1717.6,1717.5,18.23449924]
[1693397712437,5.97521371,1717.6,1717.5,18.23449924]
[1693397712633,3.34541371,1717.6,1717.5,18.23449924]
[1693397713938,0.29116264,1717.6,1717.5,18.99704416]
[1693397714334,2.58195457,1717.6,1717.5,18.99704416]
[1693397715240,3.817926,1717.6,1717.5,18.99704416]
[1693397715838,1.52713407,1717.6,1717.5,18.99704416]
[1693397716040,3.817926,1717.6,1717.5,18.99704416]
[1693397716744,1.52713407,1717.6,1717.5,18.99704416]
[1693397718044,1.53586744,1717.7,1717.5,19.76064048]
[1693397718346,1.53586744,1717.7,1717.6,16.50226289]
[1693397718648,1.53586744,1717.7,1717.6,24.54793265]
[1693397719544,6.467426,1717.8,1717.6,24.54793265]
[1693397719747,4.17663407,1717.8,1717.7,10.6920914]
[1693397720143,4.17663407,1717.8,1717.7,18.36932759]
[1693397720348,2.29079193,1717.9,1717.7,19.13351264]
[1693397720649,2.29079193,1717.9,1717.8,17.2639439]
[1693397720948,2.29079193,1717.9,1717.8,24.79840435]
[1693397721551,2.29079193,1717.9,1717.8,22.50905328]
[1693397722243,2.29079193,1717.9,1717.8,24.79840435]
[1693397722646,7.43689193,1718.0,1717.9,5.233]
[1693397722847,7.43689193,1718.0,1717.9,12.42308613]
[1693397724746,8.87047369,1718.0,1717.9,10.89775004]
[1693397725045,7.7279893,1718.0,1717.9,10.89775004]
[1693397725343,7.43689193,1718.0,1717.9,10.89775004]
[1693397727948,7.43689193,1718.0,1717.9,18.61666028]
[1693397732547,5.1461,1718.0,1717.9,19.08290622]
[1693397733357,5.14910324,1718.0,1717.9,19.08290622]
[1693397740858,6.582685,1718.0,1717.9,18.65115618]
[1693397741459,6.582685,1718.0,1717.9,19.08290622]
[1693397741660,6.582685,1718.0,1717.9,18.65115618]
[1693397741861,6.582685,1718.0,1717.9,13.41815618]
[1693397742464,6.582685,1718.0,1717.9,13.84990622]
[1693397743168,5.14910324,1718.0,1717.9,13.84990622]
[1693397743467,5.14910324,1718.0,1717.9,19.08290622]
[1693397745374,5.14910324,1718.0,1717.9,25.68144592]
[1693397745570,2.5535,1718.2,1718.0,2.26993648]
[1693397745773,2.5535,1718.2,1718.1,8.87255004]
[1693397745974,2.5535,1718.2,1718.1,16.56946093]
[1693397746376,2.55639864,1718.2,1718.1,16.56946093]
[1693397747374,2.5535,1718.2,1718.1,16.56946093]
[1693397748378,2.55640145,1718.2,1718.1,16.56946093]
[1693397748877,5.13450145,1718.2,1718.1,16.56946093]
[1693397753678,6.56808321,1718.2,1718.1,16.56946093]
[1693397753881,5.13450145,1718.2,1718.1,16.56946093]
[1693397754485,6.56808321,1718.2,1718.1,16.56946093]
[1693397755587,6.56808321,1718.2,1718.1,18.09285202]
[1693397755988,6.56808321,1718.2,1718.1,18.54799801]
[1693397756194,5.13450145,1718.2,1718.1,18.54799801]
[1693397759394,5.13450145,1718.2,1718.1,21.33317471]
[1693397759693,2.29079193,1718.3,1718.1,21.33317471]
[1693397759895,2.29079193,1718.3,1718.2,7.50293648]
[1693397760193,2.29079193,1718.3,1718.2,15.12207526]
[1693397761897,2.29079193,1718.3,1718.2,16.64546635]
[1693397762087,3.72437369,1718.3,1718.2,15.12207526]
[1693397762592,3.72437369,1718.3,1718.2,16.64546635]
[1693397762799,6.37167369,1718.3,1718.2,17.07721639]
[1693397763295,6.37167369,1718.3,1718.2,15.5538253]
[1693397763499,6.37167369,1718.3,1718.2,15.12207526]
[1693397763794,6.37167369,1718.3,1718.2,15.5538253]
[1693397764594,6.37167369,1718.3,1718.2,12.85213878]
[1693397765597,6.66271711,1718.3,1718.2,13.28388882]
[1693397766598,6.66271711,1718.3,1718.2,12.85213878]
[1693397769092,6.37167369,1718.3,1718.2,12.85213878]
[1693397770198,6.37167369,1718.3,1718.2,13.28388882]
[1693397770595,2.93834135,1718.3,1718.2,13.28388882]
[1693397772498,5.22555115,1718.3,1718.2,13.28388882]
[1693397772793,4.93451939,1718.3,1718.2,13.28388882]
[1693397772999,5.2255515,1718.3,1718.2,13.28388882]
[1693397773195,2.5782515,1718.3,1718.2,13.28388882]
[1693397773398,2.28721939,1718.3,1718.2,13.28388882]
[1693397773593,1.99625136,1718.3,1718.2,13.28388882]
[1693397773890,5.66908486,1718.6,1718.4,5.63190169]
[1693397774090,5.08708486,1718.6,1718.5,8.87255004]
[1693397774298,5.37808348,1718.6,1718.5,16.58863379]
[1693397774490,5.08708486,1718.6,1718.5,18.85857027]
[1693397777195,7.54718486,1718.6,1718.5,18.85857027]
[1693397777805,4.498,1718.6,1718.5,18.85857027]
[1693397779194,2.4601,1718.6,1718.5,18.85857027]
[1693397779399,5.59018486,1718.7,1718.5,18.85857027]
[1693397779595,8.01028486,1718.7,1718.6,5.233]
[1693397781299,2.42351645,1718.7,1718.6,5.233]
[1693397781493,2.42351645,1718.7,1718.6,12.80805416]
[1693397785807,5.47270131,1718.7,1718.6,12.80805416]
[1693397786512,6.90628307,1718.7,1718.6,12.80805416]
[1693397786907,5.47270131,1718.7,1718.6,12.80805416]
[1693397787307,2.42351645,1718.7,1718.6,12.80805416]
[1693397787509,5.47270131,1718.7,1718.6,12.80805416]
[1693397788307,2.42351645,1718.7,1718.6,12.80805416]
[1693397788507,3.85709821,1718.7,1718.6,12.80805416]
[1693397789406,2.42351645,1718.7,1718.6,12.80805416]
[1693397791508,3.85709821,1718.7,1718.6,12.80805416]
[1693397792314,2.42351645,1718.7,1718.6,12.80805416]
[1693397793011,3.85709821,1718.7,1718.6,12.80805416]
[1693397793715,2.42351645,1718.7,1718.6,12.80805416]
[1693397795413,3.85368176,1718.7,1718.6,12.80805416]
[1693397795612,2.4201,1718.7,1718.6,12.80805416]
[1693397796213,3.85368176,1718.7,1718.6,12.80805416]
[1693397796413,3.85708263,1718.7,1718.6,12.80805416]
[1693397797315,3.85708263,1718.7,1718.6,5.233]
[1693397799616,6.9038364,1718.7,1718.6,5.233]
[1693397800313,6.90043553,1718.7,1718.6,5.233]
[1693397803421,6.90383303,1718.7,1718.6,5.233]
[1693397803820,3.85707926,1718.7,1718.6,5.233]
[1693397804214,6.90502668,1718.7,1718.6,5.66475004]
[1693397804415,3.85368176,1718.7,1718.6,5.66475004]
[1693397805222,7.66212397,1718.7,1718.6,5.66475004]
[1693397805711,7.66212397,1718.7,1718.6,5.233]
[1693397806214,7.66212397,1718.7,1718.6,5.66475004]
[1693397806709,7.66212397,1718.7,1718.6,5.233]
[1693397807717,7.66212397,1718.7,1718.6,5.66475004]
[1693397807924,6.90230011,1718.7,1718.6,5.66475004]
[1693397808217,6.90230011,1718.7,1718.6,5.233]
[1693397809124,6.90251388,1718.7,1718.6,5.233]
[1693397809323,3.85368176,1718.7,1718.6,5.233]
[1693397810422,7.66585959,1718.7,1718.6,5.233]
[1693397810825,3.85741738,1718.7,1718.6,5.233]
[1693397811020,2.42383562,1718.7,1718.6,5.66475004]
[1693397811527,7.66585959,1718.7,1718.6,5.66475004]
[1693397811827,6.23227783,1718.7,1718.6,5.66475004]
[1693397812023,7.66585959,1718.7,1718.6,5.66475004]
[1693397813425,6.23227783,1718.7,1718.6,5.66475004]
[1693397815526,6.22854221,1718.7,1718.6,5.66475004]
[1693397815726,7.66212397,1718.7,1718.6,5.66475004]
[1693397815927,7.66212397,1718.7,1718.6,5.233]
[1693397816127,8.60120054,1718.7,1718.6,5.233]
[1693397818228,8.60120054,1718.7,1718.6,5.66475004]
[1693397818429,4.79275833,1718.7,1718.6,5.66475004]
[1693397818627,14.53360864,1718.7,1718.6,5.66475004]
[1693397818826,3.35917657,1718.7,1718.6,5.66475004]
[1693397819027,2.4201,1718.7,1718.6,5.66475004]
[1693397819734,6.23641183,1718.7,1718.6,5.66475004]
[1693397819931,3.81631183,1718.7,1718.6,5.66475004]
[1693397820329,3.81631183,1718.7,1718.6,7.19145251]
[1693397820330,3.81642415,1718.7,1718.6,7.19145251]
[1693397820820,3.81642415,1718.7,1718.6,14.65434747]
[1693397821027,3.05328547,1718.7,1718.6,19.854171]
[1693397822226,3.05328547,1718.7,1718.6,17.5641173]
[1693397823033,3.82223166,1718.8,1718.6,17.5641173]
[1693397823232,3.82223166,1718.8,1718.7,10.71073648]
[1693397824432,3.82535438,1718.8,1718.7,10.71073648]
[1693397826425,3.82223166,1718.8,1718.7,10.71073648]
[1693397829040,3.82223166,1718.8,1718.7,18.20106692]
[1693397831433,3.05752651,1718.8,1718.7,19.72776939]
[1693397831629,0.00580751,1718.8,1718.7,23.37964058]
[1693397831938,3.23462415,1719.0,1718.9,5.233]
[1693397832236,2.65282415,1719.0,1718.9,10.71073648]
[1693397832429,2.65282415,1719.0,1718.9,11.14248652]
[1693397833032,4.9762,1719.1,1718.9,11.14248652]
[1693397833326,1.43358176,1719.0,1718.9,5.90948652]
[1693397833527,4.9762,1719.1,1718.9,11.14248652]
[1693397833839,4.9762,1719.1,1719.0,5.233]
[1693397834034,6.40978176,1719.1,1719.0,5.233]
[1693397835435,4.9762,1719.1,1719.0,5.233]
[1693397835930,6.40978176,1719.1,1719.0,5.233]
[1693397837337,0.94399935,1719.2,1719.0,13.31349778]
[1693397837539,2.6148,1719.2,1719.1,7.90210382]
[1693397837938,3.55879935,1719.2,1719.1,7.90210382]
[1693397838440,4.99238111,1719.2,1719.1,7.90210382]
[1693397838835,4.99238111,1719.2,1719.1,7.50293648]
[1693397839837,4.99238111,1719.2,1719.1,7.93468652]
[1693397841642,4.99238111,1719.2,1719.1,5.233]
[1693397842840,4.99238111,1719.2,1719.1,5.66475004]
[1693397843941,4.99238111,1719.2,1719.1,5.233]
[1693397844842,4.04838176,1719.2,1719.1,5.233]
[1693397845037,4.99238111,1719.2,1719.1,5.233]
[1693397849754,4.99238111,1719.2,1718.9,0.00872575]
[1693397849755,14.59688111,1719.2,1718.9,0.00872575]
[1693397850043,6.41589999,1719.1,1718.9,0.00872575]
[1693397850244,4.64138176,1719.0,1718.9,0.00872575]
[1693397850642,7.21898176,1719.0,1718.9,0.00872575]
[1693397851045,8.16298111,1719.0,1718.9,0.00872575]
[1693397851645,7.21898176,1719.0,1718.9,0.00872575]
[1693397852447,11.02769682,1719.0,1718.9,0.00872575]
[1693397852651,11.91435568,1719.0,1718.9,0.00872575]
[1693397856558,11.91567299,1719.0,1718.9,0.00872575]
[1693397857755,7.82095992,1719.0,1718.9,5.67347579]
[1693397857951,6.38737816,1719.0,1718.9,5.67347579]
[1693397858553,7.82095992,1719.0,1718.9,5.67347579]
[1693397859947,7.82095992,1719.0,1718.9,5.24172575]
[1693397860753,8.70786283,1719.0,1718.9,5.24172575]
[1693397860958,7.82095992,1719.0,1718.9,5.24172575]
[1693397861452,8.70786283,1719.0,1718.9,5.24172575]
[1693397863456,4.89808467,1719.0,1718.9,5.24172575]
[1693397863955,4.01118176,1719.0,1718.9,5.24172575]
[1693397864656,4.89808467,1719.0,1718.9,5.24172575]
[1693397865461,4.01118176,1719.0,1718.9,5.24172575]
[1693397865662,4.89808467,1719.0,1718.9,5.24172575]
[1693397868163,8.10588467,1719.0,1718.8,5.233]
[1693397868360,0.01919999,1718.9,1718.8,5.233]
[1693397868659,3.83321456,1718.9,1718.8,5.233]
[1693397868957,4.72011747,1718.9,1718.8,5.233]
[1693397870867,0.9061029,1718.9,1718.8,5.233]
[1693397871060,0.01919999,1718.9,1718.8,5.233]
[1693397871258,3.83320997,1718.9,1718.8,5.233]
[1693397871565,4.72011969,1718.9,1718.8,5.233]
[1693397871861,4.72011969,1718.9,1718.7,5.233]
[1693397872364,1.43358176,1718.8,1718.7,5.233]
[1693397874066,5.24759855,1718.8,1718.7,5.233]
[1693397874263,5.24759855,1718.8,1718.6,4.17594456]
[1693397874467,5.24759855,1718.8,1718.6,2.6521]
[1693397874468,3.07033832,1718.7,1718.6,2.6521]
[1693397875464,3.83321678,1718.7,1718.6,2.6521]
[1693397877464,0.01919999,1718.7,1718.6,2.6521]
[1693397878763,3.06939576,1718.7,1718.6,2.6521]
[1693397880577,0.01919999,1718.7,1718.6,2.6521]
[1693397880872,3.06922736,1718.7,1718.6,2.6521]
[1693397881876,3.06922736,1718.7,1718.6,7.8851]
[1693397882277,3.05002737,1718.7,1718.6,8.31685004]
[1693397888572,4.48360913,1718.7,1718.6,8.31685004]
[1693397889174,3.05002737,1718.7,1718.6,8.31685004]
[1693397893788,7.93353072,1718.8,1718.6,8.31685004]
[1693397893982,8.45391598,1718.8,1718.7,5.233]
[1693397894282,9.36711248,1718.8,1718.7,5.233]
[1693397897690,11.96501248,1718.8,1718.7,5.233]
[1693397899589,10.53143072,1718.8,1718.7,5.233]
[1693397900488,11.96501248,1718.8,1718.7,5.233]
[1693397905191,11.96501248,1718.8,1718.7,5.66475004]
[1693397905595,11.96501248,1718.8,1718.7,5.233]
[1693397906991,11.96501248,1718.8,1718.7,5.66475004]
[1693397908294,11.96501248,1718.8,1718.7,5.233]
[1693397912897,7.23928176,1718.8,1718.7,5.66475004]
[1693397913400,4.94467826,1718.8,1718.7,5.66475004]
[1693397913801,4.03148176,1718.8,1718.7,5.66475004]
[1693397915704,6.41474616,1718.8,1718.7,7.18994211]
[1693397915998,7.84832792,1718.8,1718.7,6.75819207]
[1693397917004,7.84832792,1718.8,1718.7,7.18994211]
[1693397918606,7.84832792,1718.8,1718.7,6.75819207]
[1693397918802,7.84832792,1718.8,1718.7,13.30736661]
[1693397918803,6.41474616,1718.8,1718.7,13.30736661]
[1693397919108,7.84832792,1718.8,1718.7,12.87561657]
[1693397919302,7.84832792,1718.8,1718.7,9.96599207]
[1693397919507,7.84832792,1718.8,1718.7,10.39774211]
[1693397920606,0.02792405,1718.9,1718.7,18.08921322]
[1693397920607,3.82557022,1718.9,1718.7,18.08921322]
[1693397920811,3.82557022,1718.9,1718.8,7.50293648]
[1693397921008,3.82557022,1718.9,1718.8,9.4015864]
[1693397921207,3.82557022,1718.9,1718.8,19.73932446]
[1693397921405,3.0612532,1718.9,1718.8,16.82982061]
[1693397921605,3.06120642,1718.9,1718.8,22.02705177]
[1693397922408,3.06120642,1718.9,1718.8,19.73926367]
[1693397923309,2.28847372,1718.9,1718.8,22.02731139]
[1693397923608,2.28847372,1718.9,1718.8,20.5018597]
[1693397923809,1.70667372,1718.9,1718.8,20.5018597]
[1693397924200,1.12487372,1718.9,1718.8,20.5018597]
[1693397924402,1.12487372,1718.9,1718.8,22.02704492]
[1693397924711,0.54307372,1718.9,1718.8,22.02704492]
[1693397925112,2.44068014,1719.0,1718.9,0.43175004]
[1693397925411,2.44068014,1719.0,1718.9,8.87255004]
[1693397925608,1.85888014,1719.0,1718.9,8.87255004]
[1693397931525,7.34894266,1719.2,1718.9,8.87255004]
[1693397931726,1.43358176,1719.1,1718.9,3.63955004]
[1693397931922,1.43358176,1719.1,1719.0,5.233]
[1693397936225,5.25042792,1719.1,1719.0,5.233]
[1693397937229,5.25042792,1719.1,1718.9,5.70376072]
[1693397937423,5.25042792,1719.1,1718.9,5.233]
[1693397937424,0.01919999,1719.0,1718.9,5.233]
[1693397941626,3.82934331,1719.0,1718.8,5.233]
[1693397941834,1.43358176,1718.9,1718.8,5.233]
[1693397951135,1.43358176,1718.9,1718.8,5.66475004]
[1693397951836,1.43358176,1718.9,1718.8,5.233]
[1693397953338,6.27274332,1719.0,1718.8,5.66475004]
[1693397953642,8.42778136,1719.0,1718.8,5.66475004]
[1693397953838,8.42778136,1719.0,1718.8,5.233]
[1693397954736,8.42778136,1719.0,1718.8,5.66475004]
[1693397957240,3.81014332,1718.9,1718.8,5.66475004]
[1693397958340,3.05026607,1718.9,1718.8,5.66475004]
[1693397961341,4.5315996,1719.0,1718.8,5.66475004]
[1693397961543,3.81014332,1719.0,1718.9,7.50293648]
[1693397964435,4.5315996,1719.0,1718.9,7.50293648]
[1693397965438,3.81014332,1719.0,1718.9,7.50293648]
[1693397966042,4.5315996,1719.0,1718.9,7.50293648]
[1693397966247,0.72145628,1719.0,1718.9,7.50293648]
[1693397966643,8.94367199,1719.1,1718.9,7.50293648]
[1693397966944,8.94367199,1719.1,1719.0,5.233]
[1693397967141,14.49160896,1719.1,1719.0,12.64690572]
[1693397967346,1.88515628,1719.1,1719.0,13.07865576]
[1693397967544,1.1637,1719.1,1719.0,13.07865576]
[1693397968052,12.3359656,1719.1,1719.0,13.07865576]
[1693397968243,1.1637,1719.1,1719.0,13.07865576]
[1693397968944,17.62959387,1719.2,1719.0,13.07865576]
[1693397969751,19.06317563,1719.2,1719.0,13.07865576]
[1693397971953,19.06317563,1719.2,1719.1,5.233]
[1693397973646,7.89091003,1719.2,1719.1,5.233]
[1693397973851,7.16945375,1719.2,1719.1,5.233]
[1693397974048,19.06317563,1719.2,1719.1,5.233]
[1693397977651,21.48927563,1719.2,1719.1,5.233]
[1693397981361,20.32557563,1719.2,1719.1,5.233]
[1693397981663,18.89199387,1719.2,1719.1,5.233]
[1693397982663,11.89372188,1719.2,1719.1,5.233]
[1693397982856,16.92768206,1719.3,1719.1,5.233]
[1693397983058,16.92768206,1719.3,1719.2,7.93468652]
[1693397983253,16.92768206,1719.3,1719.2,7.50293648]
[1693397983765,16.92768206,1719.3,1719.2,7.93468652]
[1693397987862,18.36126382,1719.3,1719.2,7.93468652]
[1693397988569,13.78909183,1719.3,1719.2,7.93468652]
[1693397988765,2.61682623,1719.3,1719.2,7.93468652]
[1693397990066,1.18324447,1719.3,1719.2,7.93468652]
[1693397992469,2.61682623,1719.3,1719.2,7.93468652]
[1693397993168,2.61682623,1719.3,1719.2,5.233]
[1693397994275,7.84982623,1719.3,1719.0,5.233]
[1693397994574,3.81336967,1719.1,1719.0,5.233]
[1693397994766,5.24695143,1719.1,1719.0,5.233]
[1693398001873,5.24695143,1719.1,1718.9,12.23486885]
[1693398002075,3.05068261,1719.0,1718.9,12.66661889]
[1693398005282,3.05068261,1719.0,1718.9,12.23486885]
[1693398006381,3.05068261,1719.0,1718.9,12.66661889]
[1693398010684,3.05068261,1719.0,1718.9,15.57590836]
[1693398012091,6.49770066,1719.4,1718.9,15.57590836]
[1693398012092,9.90637265,1719.6,1718.9,46.18673108]
[1693398012287,5.33420066,1719.6,1719.5,5.233]
[1693398012605,3.99047199,1719.8,1719.5,7.85259259]
[1693398012794,1.1632,1719.9,1719.7,5.233]
[1693398012795,4.57605778,1719.9,1719.7,5.233]
[1693398012985,4.57605778,1719.9,1719.8,5.233]
[1693398012986,1.43358176,1719.9,1719.8,5.233]
[1693398013286,9.62035156,1720.0,1719.8,8.4408]
[1693398013484,2.59668176,1720.0,1719.9,5.233]
[1693398014086,3.32794988,1720.0,1719.9,5.233]
[1693398015692,2.59668176,1720.0,1719.9,5.233]
[1693398018594,1.1631,1720.0,1719.9,5.62056743]
[1693398018798,2.59668176,1720.0,1719.9,5.62056743]
[1693398018997,5.63786783,1720.0,1719.9,5.62056743]
[1693398019599,5.63786783,1720.0,1719.9,5.233]
[1693398019897,5.63786783,1720.0,1719.9,5.62056743]
[1693398020798,2.59668176,1720.0,1719.9,5.62056743]
[1693398021897,1.1631,1720.0,1719.9,5.62056743]
[1693398022097,3.44259816,1720.0,1719.9,5.62056743]
[1693398022494,4.87617992,1720.0,1719.9,5.62056743]
[1693398022699,3.44259816,1720.0,1719.9,5.62056743]
[1693398025607,4.87617992,1720.0,1719.9,5.62056743]
[1693398026007,3.44259816,1720.0,1719.9,5.62056743]
[1693398027697,2.68193481,1720.0,1719.9,5.62056743]
[1693398028098,1.51883481,1720.0,1719.9,5.62056743]
[1693398030907,5.42312265,1720.1,1719.9,5.62056743]
[1693398031107,6.85670441,1720.1,1720.0,5.233]
[1693398031308,5.3378696,1720.1,1720.0,5.233]
[1693398031608,6.85600158,1720.1,1720.0,5.233]
[1693398031798,5.3378696,1720.1,1720.0,5.233]
[1693398031997,6.8558942,1720.1,1720.0,5.233]
[1693398032598,6.85953058,1720.1,1720.0,5.233]
[1693398033002,4.58003242,1720.1,1720.0,5.233]
[1693398033406,6.85953058,1720.1,1720.0,5.233]
[1693398034011,4.58003242,1720.1,1720.0,5.233]
[1693398035114,4.58003242,1720.1,1719.8,5.43982516]
[1693398035115,1.1631,1720.0,1719.8,5.233]
[1693398035321,1.1632,1719.8,1719.6,5.233]
[1693398035507,3.2078,1719.7,1719.6,5.233]
[1693398035708,6.91131824,1719.7,1719.6,5.233]
[1693398036605,6.91490851,1719.7,1719.5,5.60319364]
[1693398036807,5.48132675,1719.7,1719.6,5.62056743]
[1693398037813,0.00359027,1719.7,1719.6,7.85259259]
[1693398038614,3.6073,1719.9,1719.6,10.36749259]
[1693398038814,3.6073,1719.9,1719.8,5.233]
[1693398039015,3.6073,1719.9,1719.8,7.85259259]
[1693398039621,3.61094653,1719.9,1719.8,7.85259259]
[1693398040217,5.12897113,1719.9,1719.8,7.85259259]
[1693398040423,3.96577113,1719.9,1719.8,7.85259259]